bitfinex/quotes_BTCUSD_20251113
["timestamp","ask_amount","ask_price","bid_price","bid_amount"]
[1763023973189,1.15421415,103690.0,103680.0,0.04184]
[1763023973393,0.71183213,103690.0,103680.0,0.04184]
[1763023973601,1.15421415,103690.0,103680.0,0.04184]
[1763023975028,0.23631997,103680.0,103670.0,0.02273612]
[1763023975259,0.56201046,103680.0,103670.0,0.06457612]
[1763023975467,0.78320147,103680.0,103670.0,0.06457612]
[1763023975692,0.81215741,103680.0,103670.0,0.06457612]
[1763023976073,1.05465741,103680.0,103670.0,0.06457612]
[1763023976624,1.05465741,103680.0,103670.0,0.08457612]
[1763023976851,1.05465741,103680.0,103670.0,0.06457612]
[1763023977054,1.05465741,103680.0,103670.0,0.08457612]
[1763023977494,0.8334664,103680.0,103670.0,0.06457612]
[1763023978404,1.05465741,103680.0,103670.0,0.06457612]
[1763023978670,0.8334664,103680.0,103670.0,0.06457612]
[1763023980372,0.61227539,103680.0,103670.0,0.06457612]
[1763023980592,0.8334664,103680.0,103670.0,0.06457612]
[1763023981828,1.05465741,103680.0,103670.0,0.06457612]
[1763023982032,0.8334664,103680.0,103670.0,0.06457612]
[1763023982349,1.37765741,103680.0,103670.0,0.06457612]
[1763023982610,0.95335322,103680.0,103670.0,0.06457612]
[1763023982810,1.17454423,103680.0,103670.0,0.06457612]
[1763023983024,1.39573524,103680.0,103670.0,0.06457612]
[1763023987097,1.24834277,103680.0,103670.0,0.06457612]
[1763023987755,1.24834277,103680.0,103670.0,0.02273612]
[1763023988131,1.24834277,103680.0,103670.0,0.04273612]
[1763023988514,1.24834277,103680.0,103670.0,0.02273612]
[1763023990143,1.54333232,103680.0,103670.0,0.06457612]
[1763023990423,0.95335322,103680.0,103670.0,0.06457612]
[1763023990603,1.54333232,103680.0,103670.0,0.06457612]
[1763023991364,1.54433232,103680.0,103670.0,0.06457612]
[1763023992174,1.54633232,103680.0,103670.0,0.06457612]
[1763023992376,1.54633232,103680.0,103670.0,0.02273612]
[1763023992796,1.35567231,103680.0,103670.0,0.02273612]
[1763023994215,1.34567232,103680.0,103670.0,0.02273612]
[1763023994403,1.35567231,103680.0,103670.0,0.02273612]
[1763023994830,1.34567232,103680.0,103670.0,0.02273612]
[1763023995035,0.76569321,103680.0,103670.0,0.02273612]
[1763023995231,1.35567231,103680.0,103670.0,0.02273612]
[1763023996228,1.65066186,103680.0,103670.0,0.02273612]
[1763023996646,1.35567231,103680.0,103670.0,0.02273612]
[1763023997717,0.23635719,103660.0,103650.0,0.01224]
[1763023997879,0.90966568,103660.0,103650.0,0.01232989]
[1763023998090,0.91371568,103660.0,103650.0,0.01232989]
[1763023998284,0.94268256,103660.0,103650.0,0.01232989]
[1763023998891,0.94568256,103660.0,103650.0,0.01232989]
[1763024003495,0.65069301,103660.0,103650.0,0.01232989]
[1763024003906,0.94568256,103660.0,103650.0,0.01232989]
[1763024006010,0.35570346,103660.0,103650.0,0.01232989]
[1763024006228,0.65069301,103660.0,103650.0,0.03232989]
[1763024006629,0.65069301,103660.0,103650.0,0.01232989]
[1763024006825,0.65069301,103660.0,103650.0,0.20528695]
[1763024006826,0.27642407,103660.0,103650.0,0.20528695]
[1763024007033,0.27642407,103660.0,103650.0,0.01232989]
[1763024007236,0.59942407,103660.0,103650.0,0.01232989]
[1763024007646,0.60347407,103660.0,103650.0,0.03232989]
[1763024007861,0.60347407,103660.0,103650.0,0.01232989]
[1763024008072,0.94237355,103660.0,103650.0,0.01232989]
[1763024008274,1.2373631,103660.0,103650.0,0.01232989]
[1763024010414,1.53235265,103660.0,103650.0,0.01232989]
[1763024010815,1.2373631,103660.0,103650.0,0.01232989]
[1763024011021,0.94237355,103660.0,103650.0,0.01232989]
[1763024011225,1.2373631,103660.0,103650.0,0.01232989]
[1763024011427,1.2373631,103660.0,103650.0,0.22528695]
[1763024011632,1.2333131,103660.0,103650.0,0.20528695]
[1763024011834,1.2333131,103660.0,103650.0,0.21739695]
[1763024012042,0.84192407,103660.0,103650.0,0.23739695]
[1763024012901,0.83892407,103660.0,103650.0,0.23739695]
[1763024013107,0.83992407,103660.0,103650.0,0.23739695]
[1763024014917,0.83587407,103660.0,103650.0,0.27761695]
[1763024016639,0.83587407,103660.0,103650.0,0.25271695]
[1763024016848,0.93227355,103660.0,103650.0,0.25271695]
[1763024017484,0.93227355,103660.0,103650.0,0.23271695]
[1763024018156,0.93227355,103660.0,103650.0,0.01232989]
[1763024018157,0.93632355,103660.0,103650.0,0.01232989]
[1763024018375,1.2353631,103660.0,103650.0,0.01232989]
[1763024018600,1.25343652,103660.0,103650.0,0.01232989]
[1763024021829,1.25343886,103660.0,103650.0,0.01232989]
[1763024022232,1.54842841,103660.0,103650.0,0.01232989]
[1763024027487,1.54842441,103660.0,103650.0,0.00048989]
[1763024032217,0.00405,103650.0,103630.0,0.02]
[1763024032434,0.55941304,103630.0,103620.0,0.0004]
[1763024032651,0.55941304,103630.0,103620.0,0.00048986]
[1763024032652,0.64315691,103630.0,103620.0,0.00048986]
[1763024032872,0.67213049,103630.0,103620.0,0.04232986]
[1763024033308,0.96712004,103630.0,103620.0,0.04232986]
[1763024033942,0.96712004,103630.0,103620.0,0.04332986]
[1763024034363,0.67213049,103630.0,103620.0,0.04332986]
[1763024034785,0.96712004,103630.0,103620.0,0.04332986]
[1763024034994,0.96812004,103630.0,103620.0,0.04232986]
[1763024035467,0.96912004,103630.0,103620.0,0.04232986]
[1763024036309,0.67413049,103630.0,103620.0,0.04232986]
[1763024036539,0.96912004,103630.0,103620.0,0.04232986]
[1763024037432,0.96912004,103630.0,103620.0,0.26277279]
[1763024037433,0.66603049,103630.0,103620.0,0.26277279]
[1763024037642,0.47303619,103630.0,103620.0,0.28767279]
[1763024037854,0.47708619,103630.0,103620.0,0.26277279]
[1763024038091,0.66603049,103630.0,103620.0,0.28277279]
[1763024038304,0.67008049,103630.0,103620.0,0.28277279]
[1763024038512,0.67008049,103630.0,103620.0,0.26745279]
[1763024038929,0.47708619,103630.0,103620.0,0.24745279]
[1763024039131,0.67008049,103630.0,103620.0,0.26745279]
[1763024040503,0.47303619,103630.0,103620.0,0.26295279]
[1763024040713,0.66603049,103630.0,103620.0,0.30570279]
[1763024041131,0.66603049,103630.0,103620.0,0.28295279]
[1763024041348,0.66603049,103630.0,103620.0,0.26745279]
[1763024041349,0.96507004,103630.0,103620.0,0.26745279]
[1763024041568,0.96507004,103630.0,103620.0,0.24745279]
[1763024041803,0.47708619,103630.0,103620.0,0.24745279]
[1763024042019,0.15003619,103630.0,103620.0,0.28570279]
[1763024042234,0.07439232,103630.0,103620.0,0.30570279]
[1763024042638,0.07439232,103630.0,103620.0,0.28570279]
[1763024042884,0.07439232,103630.0,103620.0,0.30570279]
[1763024044820,0.26738662,103630.0,103620.0,0.28570279]
[1763024045032,0.26738662,103630.0,103620.0,0.26295279]
[1763024045244,0.34332688,103630.0,103620.0,0.26295279]
[1763024045878,0.34332688,103630.0,103620.0,0.28666279]
[1763024046085,0.34332688,103630.0,103620.0,0.30666279]
[1763024046298,0.34332688,103630.0,103620.0,0.28666279]
[1763024046506,0.34332688,103630.0,103620.0,0.28295279]
[1763024046718,0.34332688,103630.0,103620.0,0.30666279]
[1763024047809,0.63831643,103630.0,103620.0,0.28295279]
[1763024048336,0.63831643,103630.0,103620.0,0.26295279]
[1763024048538,0.63831643,103630.0,103620.0,0.28295279]
[1763024048734,0.63831643,103630.0,103620.0,0.26295279]
[1763024048945,0.56474202,103630.0,103620.0,0.28295279]
[1763024049152,0.56474202,103630.0,103620.0,0.26295279]
[1763024049377,0.56474202,103630.0,103620.0,0.28295279]
[1763024049797,0.56474202,103630.0,103620.0,0.28666279]
[1763024049968,0.56474202,103630.0,103620.0,0.28295279]
[1763024050792,0.78615716,103630.0,103620.0,0.28295279]
[1763024052192,0.35142688,103630.0,103620.0,0.06232986]
[1763024052364,1.0156723,103630.0,103620.0,0.04232986]
[1763024053032,1.3386723,103630.0,103620.0,0.04232986]
[1763024053396,1.3386723,103630.0,103620.0,0.00048986]
[1763024053744,0.67442688,103630.0,103620.0,0.00048986]
[1763024053960,0.72317204,103630.0,103620.0,0.00048986]
[1763024054185,0.69247788,103630.0,103620.0,0.00048986]
[1763024054638,0.68842788,103630.0,103620.0,0.00048986]
[1763024054875,0.69247788,103630.0,103620.0,0.00048986]
[1763024055073,1.13530816,103630.0,103620.0,0.00048986]
[1763024055294,0.69247788,103630.0,103620.0,0.00048986]
[1763024055501,1.13530816,103630.0,103620.0,0.00048986]
[1763024055918,1.13530816,103630.0,103620.0,0.02048986]
[1763024056142,1.3567233,103630.0,103620.0,0.00048986]
[1763024057660,0.69247788,103630.0,103620.0,0.00048986]
[1763024057861,1.3567233,103630.0,103620.0,0.00048986]
[1763024058360,0.69247788,103630.0,103620.0,0.00048986]
[1763024058578,1.3567233,103630.0,103620.0,0.00048986]
[1763024058997,1.3567233,103630.0,103620.0,0.04232986]
[1763024059435,1.79955358,103630.0,103620.0,0.04232986]
[1763024059629,1.3567233,103630.0,103620.0,0.04232986]
[1763024063624,1.13530816,103630.0,103620.0,0.04232986]
[1763024064010,1.3567233,103630.0,103620.0,0.04232986]
[1763024066322,2.02096872,103630.0,103620.0,0.04232986]
[1763024066972,0.69247788,103630.0,103620.0,1e-08]
[1763024067193,0.72231719,103630.0,103620.0,1e-08]
[1763024067888,2.05080803,103630.0,103620.0,1e-08]
[1763024068110,2.04980803,103630.0,103620.0,1e-08]
[1763024068315,2.08050219,103630.0,103620.0,1e-08]
[1763024068546,2.07950219,103630.0,103620.0,1e-08]
[1763024070941,2.14134217,103630.0,103620.0,1e-08]
[1763024071362,2.16736702,103630.0,103620.0,1e-08]
[1763024072029,2.14134217,103630.0,103620.0,1e-08]
[1763024072900,0.8475223,103630.0,103620.0,1e-08]
[1763024073119,2.20199722,103630.0,103620.0,1e-08]
[1763024073858,0.8475223,103630.0,103620.0,1e-08]
[1763024074064,0.89952876,103630.0,103620.0,1e-08]
[1763024074262,0.8475223,103630.0,103620.0,1e-08]
[1763024074473,0.87349738,103630.0,103620.0,1e-08]
[1763024076306,0.47855029,103610.0,103600.0,0.0004]
[1763024076510,0.34011133,103610.0,103600.0,0.00053988]
[1763024076705,0.34416133,103610.0,103600.0,0.00053988]
[1763024076910,1.68289217,103610.0,103600.0,0.00053988]
[1763024078813,1.68268163,103610.0,103600.0,0.00053988]
[1763024085358,1.66463063,103610.0,103600.0,0.00053988]
[1763024085566,1.70344727,103610.0,103600.0,0.00053988]
[1763024086295,1.68267342,103610.0,103600.0,0.00053988]
[1763024092701,1.018428,103610.0,103600.0,0.00053988]
[1763024094327,1.03922225,103610.0,103600.0,0.00053988]
[1763024094766,1.70346767,103610.0,103600.0,0.00053988]
[1763024098305,1.71250352,103610.0,103600.0,0.00053988]
[1763024100330,2.03550352,103610.0,103600.0,0.00053988]
[1763024100735,2.03550352,103610.0,103600.0,0.00530275]
[1763024101157,2.06146993,103610.0,103600.0,0.00530275]
[1763024101791,2.06148219,103610.0,103600.0,0.00530275]
[1763024102000,1.39723677,103610.0,103600.0,0.00530275]
[1763024102202,0.65455809,103610.0,103600.0,0.00530275]
[1763024102340,0.32345809,103610.0,103600.0,0.25086294]
[1763024102563,0.03883704,103610.0,103600.0,0.51411808]
[1763024102760,0.06146153,103610.0,103600.0,0.51411808]
[1763024102942,0.01804279,103610.0,103600.0,0.58411808]
[1763024103147,0.06146153,103610.0,103600.0,0.58411808]
[1763024103765,0.06246153,103610.0,103600.0,0.58411808]
[1763024104042,0.04789287,103610.0,103600.0,0.58411808]
[1763024104223,0.09131161,103610.0,103600.0,0.36270294]
[1763024104422,0.09131161,103610.0,103600.0,0.58411808]
[1763024105086,0.09031161,103610.0,103600.0,0.58411808]
[1763024105261,0.09131161,103610.0,103600.0,0.58411808]
[1763024105494,0.04441874,103610.0,103600.0,0.80553322]
[1763024105795,0.04441874,103610.0,103600.0,1.02694836]
[1763024105796,0.001,103610.0,103600.0,1.02694836]
[1763024106130,0.04341874,103620.0,103610.0,0.19303156]
[1763024106339,0.0614896,103620.0,103610.0,0.26899191]
[1763024106540,0.12310029,103620.0,103610.0,0.71182219]
[1763024107166,0.10502943,103620.0,103610.0,0.71182219]
[1763024107387,0.04341874,103620.0,103610.0,0.71182219]
[1763024107851,0.23564739,103640.0,103620.0,0.21300002]
[1763024108061,0.53935454,103640.0,103630.0,0.08913]
[1763024108258,0.56854847,103640.0,103630.0,0.09731547]
[1763024108461,0.61196721,103640.0,103630.0,0.29030977]
[1763024108679,0.61196721,103640.0,103630.0,0.53172491]
[1763024108680,0.01806377,103640.0,103630.0,0.53172491]
[1763024108884,0.01806377,103640.0,103630.0,0.51172491]
[1763024109090,0.06148251,103640.0,103630.0,0.51172491]
[1763024109596,0.06148251,103640.0,103630.0,0.29030977]
[1763024109808,0.01806377,103640.0,103630.0,0.53172491]
[1763024110120,0.06248251,103640.0,103630.0,0.53172491]
[1763024110323,0.25545819,103640.0,103630.0,0.31030977]
[1763024110580,0.06248251,103640.0,103630.0,0.51172491]
[1763024110783,0.06248251,103640.0,103630.0,0.73314005]
[1763024110999,0.06248251,103640.0,103630.0,0.6053987]
[1763024111356,0.06248251,103640.0,103630.0,0.31030977]
[1763024111793,0.06248251,103640.0,103630.0,0.6053987]
[1763024111995,0.04441874,103640.0,103630.0,0.6053987]
[1763024112686,0.04341874,103640.0,103630.0,0.6053987]
[1763024113276,0.04341874,103640.0,103630.0,0.6063987]
[1763024113825,0.23637872,103650.0,103640.0,0.21297568]
[1763024114063,0.25440039,103650.0,103640.0,0.26441568]
[1763024114265,0.06144041,103650.0,103640.0,0.26820877]
[1763024114690,0.34706394,103650.0,103640.0,0.01527309]
[1763024114907,0.63810287,103650.0,103640.0,0.24820877]
[1763024115118,0.63810287,103650.0,103640.0,0.05537297]
[1763024115347,0.15105688,103650.0,103640.0,0.26834865]
[1763024115568,0.34401394,103650.0,103640.0,0.26834865]
[1763024115780,0.5504864,103650.0,103640.0,0.03122297]
[1763024115986,0.5545364,103650.0,103640.0,0.07310297]
[1763024116227,0.5545364,103650.0,103640.0,0.09310297]
[1763024116662,0.5585864,103650.0,103640.0,0.06581297]
[1763024116901,0.5585864,103650.0,103640.0,0.04577297]
[1763024116902,0.70364925,103650.0,103640.0,0.04577297]
[1763024117108,0.99873818,103650.0,103640.0,0.04577297]
[1763024117853,0.97798588,103650.0,103640.0,0.04577297]
[1763024118353,0.99873827,103650.0,103640.0,0.04577297]
[1763024118553,0.70364934,103650.0,103640.0,0.04577297]
[1763024118754,1.2938272,103650.0,103640.0,0.00393297]
[1763024118939,1.30283474,103650.0,103640.0,0.00393297]
[1763024119724,1.30183474,103650.0,103640.0,0.00393297]
[1763024121141,1.33080654,103650.0,103640.0,0.00393297]
[1763024121349,1.03571761,103650.0,103640.0,0.00393297]
[1763024122144,1.33081027,103650.0,103640.0,0.00393297]
[1763024124142,1.35677668,103650.0,103640.0,0.00393297]
[1763024125628,1.39873668,103650.0,103640.0,0.00393297]
[1763024126232,1.43340765,103650.0,103640.0,0.00393297]
[1763024127632,1.43340765,103650.0,103640.0,0.00493297]
[1763024127844,1.39873668,103650.0,103640.0,0.00693297]
[1763024128059,0.61227186,103650.0,103640.0,0.00693297]
[1763024128270,0.60326059,103650.0,103640.0,0.00693297]
[1763024128983,0.92626059,103650.0,103640.0,0.00593297]
[1763024129128,0.92626059,103650.0,103640.0,0.00393297]
[1763024129335,0.93528518,103650.0,103640.0,0.00393297]
[1763024129520,0.93528518,103650.0,103640.0,0.03541297]
[1763024129720,0.92626059,103650.0,103640.0,0.01541297]
[1763024129927,0.92221059,103650.0,103640.0,0.07549297]
[1763024130380,0.92626059,103650.0,103640.0,0.00393297]
[1763024131093,0.93528909,103650.0,103640.0,0.00393297]
[1763024131522,1.03573857,103650.0,103640.0,0.00393297]
[1763024132835,1.03168857,103650.0,103640.0,0.02393297]
[1763024133025,1.00190768,103650.0,103640.0,0.02393297]
[1763024133236,1.00190768,103650.0,103640.0,0.00393297]
[1763024133856,0.9055082,103650.0,103640.0,0.01601297]
[1763024134145,0.9014582,103650.0,103640.0,0.07663297]
[1763024134621,0.9014582,103650.0,103640.0,0.24960865]
[1763024134821,0.9014582,103650.0,103640.0,0.26960865]
[1763024134995,0.9014582,103650.0,103640.0,0.05663297]
[1763024135160,0.9014582,103650.0,103640.0,0.07663297]
[1763024135357,0.9014582,103650.0,103640.0,0.24960865]
[1763024135738,0.92772599,103650.0,103640.0,0.07663297]
[1763024135942,0.92772599,103650.0,103640.0,0.05663297]
[1763024137303,0.92772599,103650.0,103640.0,0.07663297]
[1763024137718,0.92775485,103650.0,103640.0,0.05663297]
[1763024138712,0.92775485,103650.0,103640.0,0.07663297]
[1763024138899,0.92775485,103650.0,103640.0,0.26960865]
[1763024139525,0.41344107,103650.0,103640.0,0.26960865]
[1763024139728,0.2653476,103650.0,103640.0,0.24960865]
[1763024139934,0.2653476,103650.0,103640.0,0.26960865]
[1763024140136,0.2363758,103650.0,103640.0,0.26960865]
[1763024140856,0.2373758,103650.0,103640.0,0.26960865]
[1763024141024,0.2393758,103650.0,103640.0,0.26960865]
[1763024142057,0.04641874,103650.0,103640.0,0.24960865]
[1763024142257,0.04641874,103650.0,103640.0,0.56469758]
[1763024142458,0.04641874,103650.0,103640.0,0.26960865]
[1763024143127,0.04541874,103650.0,103640.0,0.26960865]
[1763024143536,0.04641874,103650.0,103640.0,0.26960865]
[1763024143947,0.04441874,103650.0,103640.0,0.26960865]
[1763024144166,0.04541874,103650.0,103640.0,0.26960865]
[1763024144388,0.04541874,103650.0,103640.0,0.05663297]
[1763024144389,0.2383758,103650.0,103640.0,0.05663297]
[1763024144597,0.62986421,103650.0,103640.0,0.05663297]
[1763024144797,0.62986421,103650.0,103640.0,0.07663297]
[1763024145010,0.62986421,103650.0,103640.0,0.24960865]
[1763024145243,0.62986421,103650.0,103640.0,0.05236297]
[1763024145715,0.62986421,103650.0,103640.0,0.24960865]
[1763024145938,0.34287528,103650.0,103640.0,0.00393297]
[1763024146155,1.27407536,103650.0,103640.0,0.04585297]
[1763024146376,0.61241386,103650.0,103640.0,0.05793297]
[1763024146666,0.60836386,103650.0,103640.0,0.09855297]
[1763024146936,0.60836386,103650.0,103640.0,0.11855297]
[1763024147147,0.59034164,103650.0,103640.0,0.11855297]
[1763024147363,0.88543057,103650.0,103640.0,0.11855297]
[1763024147768,0.99985112,103650.0,103640.0,0.11855297]
[1763024148276,0.99985112,103650.0,103640.0,0.09855297]
[1763024148482,0.99985112,103650.0,103640.0,0.07428297]
[1763024150419,1.00390112,103650.0,103640.0,0.04585297]
[1763024151053,1.00795112,103650.0,103640.0,0.04585297]
[1763024151874,1.25045112,103650.0,103640.0,0.04585297]
[1763024152459,1.24640112,103650.0,103640.0,0.04585297]
[1763024153729,1.24640112,103650.0,103640.0,0.00393297]
[1763024154316,1.25045112,103650.0,103640.0,0.04581297]
[1763024154936,1.24640112,103650.0,103640.0,0.04581297]
[1763024155358,1.25045112,103650.0,103640.0,0.04581297]
[1763024155991,1.54554005,103650.0,103640.0,0.00393297]
[1763024156240,1.54554005,103650.0,103640.0,0.04581297]
[1763024156375,1.25045112,103650.0,103640.0,0.04581297]
[1763024157418,0.95536219,103650.0,103640.0,0.04581297]
[1763024157623,1.25045112,103650.0,103640.0,0.04581297]
[1763024159037,1.54554005,103650.0,103640.0,0.04581297]
[1763024159602,0.95536219,103650.0,103640.0,0.04581297]
[1763024159825,1.54554005,103650.0,103640.0,0.04581297]
[1763024159944,1.25045112,103650.0,103640.0,0.04581297]
[1763024160166,1.54554005,103650.0,103640.0,0.04581297]
[1763024162094,1.25045112,103650.0,103640.0,0.04581297]
[1763024162849,0.19303156,103610.0,103600.0,0.17782]
[1763024163101,0.51601293,103620.0,103610.0,0.05655]
[1763024163316,0.51601293,103620.0,103610.0,0.03655]
[1763024163525,0.81110186,103620.0,103610.0,0.07171]
[1763024163745,0.51601293,103620.0,103610.0,0.07171]
[1763024163962,0.81110186,103620.0,103610.0,0.05171]
[1763024164390,0.81110186,103620.0,103610.0,0.07371]
[1763024164565,0.81110186,103620.0,103610.0,0.07171]
[1763024164790,0.81110186,103620.0,103610.0,0.05171]
[1763024165031,0.81110186,103620.0,103610.0,0.12171]
[1763024165259,0.90750134,103620.0,103610.0,0.12171]
[1763024165470,0.81110186,103620.0,103610.0,0.12171]
[1763024165915,0.81110186,103620.0,103610.0,0.10171]
[1763024166100,0.8545206,103620.0,103610.0,0.10171]
[1763024166532,0.8545206,103620.0,103610.0,0.07678]
[1763024167590,0.8585706,103620.0,103610.0,0.06162]
[1763024167809,0.95497008,103620.0,103610.0,0.06162]
[1763024169134,0.95497008,103620.0,103610.0,0.08162]
[1763024169577,0.95497008,103620.0,103610.0,0.06162]
[1763024169824,0.95092008,103620.0,103610.0,0.10176]
[1763024170031,0.95092008,103620.0,103610.0,0.07734]
[1763024170677,0.95902008,103620.0,103610.0,0.05]
[1763024171734,0.95497008,103620.0,103610.0,0.05]
[1763024172140,0.95497008,103620.0,103610.0,0.07]
[1763024172327,0.95497008,103620.0,103610.0,0.08189]
[1763024172576,0.95092008,103620.0,103610.0,0.10203]
[1763024172787,0.65583115,103620.0,103610.0,0.29506156]
[1763024172995,0.55943167,103620.0,103610.0,0.31506156]
[1763024173205,0.78085968,103620.0,103610.0,0.31506156]
[1763024173815,0.36641874,103620.0,103610.0,0.53648957]
[1763024174231,0.55943167,103620.0,103610.0,0.53721629]
[1763024174434,0.36641874,103620.0,103610.0,0.53721629]
[1763024175729,0.36641874,103620.0,103610.0,0.7586443]
[1763024175940,0.36641874,103620.0,103610.0,0.53721629]
[1763024177539,0.36641874,103620.0,103610.0,0.31578828]
[1763024177905,0.36641874,103620.0,103610.0,0.53721629]
[1763024180170,0.83088207,103630.0,103620.0,0.19301293]
[1763024180429,0.63788777,103630.0,103620.0,0.52835094]
[1763024180675,0.63788777,103630.0,103620.0,0.52883537]
[1763024181321,0.58838207,103630.0,103620.0,0.52883537]
[1763024181988,0.58838207,103630.0,103620.0,0.30740736]
[1763024182201,0.36641874,103630.0,103620.0,0.52883537]
[1763024182398,0.36641874,103630.0,103620.0,0.30740736]
[1763024182640,0.36741874,103630.0,103620.0,0.30740736]
[1763024183109,0.36741874,103630.0,103620.0,0.52883537]
[1763024183539,0.04441874,103630.0,103620.0,0.75026338]
[1763024183794,0.001,103630.0,103620.0,0.75026338]
[1763024186050,1.84961236,103630.0,103620.0,0.00048443]
[1763024186281,1.32919655,103630.0,103620.0,0.00048443]
[1763024186502,0.66491252,103630.0,103620.0,0.00048443]
[1763024186740,1.34726098,103630.0,103620.0,0.00048443]
[1763024188369,1.37623222,103630.0,103620.0,0.00048443]
[1763024189600,1.59766023,103630.0,103620.0,0.00048443]
[1763024189820,0.70384819,103630.0,103620.0,0.00048443]
[1763024190021,0.70384819,103630.0,103620.0,0.05277443]
[1763024190022,0.68578376,103630.0,103620.0,0.05277443]
[1763024190251,0.58938428,103630.0,103620.0,0.07277443]
[1763024190466,0.81081229,103630.0,103620.0,0.05277443]
[1763024190664,0.58938428,103630.0,103620.0,0.07277443]
[1763024191194,0.81081229,103630.0,103620.0,0.07277443]
[1763024191440,0.81081229,103630.0,103620.0,0.05277443]
[1763024191660,0.58938428,103630.0,103620.0,0.26578736]
[1763024191873,0.58938428,103630.0,103620.0,0.24578736]
[1763024192546,0.58938428,103630.0,103620.0,0.26578736]
[1763024192966,0.58938428,103630.0,103620.0,0.24578736]
[1763024193999,0.58938204,103630.0,103620.0,0.07277443]
[1763024194147,0.67804457,103630.0,103620.0,0.07277443]
[1763024194351,0.67804457,103630.0,103620.0,0.05277443]
[1763024194571,0.56041304,103630.0,103620.0,0.05277443]
[1763024194791,0.56041304,103630.0,103620.0,0.24578736]
[1763024194997,0.36741874,103630.0,103620.0,0.49735891]
[1763024195201,0.36741874,103630.0,103620.0,0.26578736]
[1763024197149,0.56041304,103630.0,103620.0,0.26578736]
[1763024197352,0.36741874,103630.0,103620.0,0.26578736]
[1763024197565,0.56041304,103630.0,103620.0,0.26578736]
[1763024197756,0.36741874,103630.0,103620.0,0.26578736]
[1763024199600,0.36741874,103630.0,103620.0,0.24578736]
[1763024199761,0.324,103630.0,103620.0,0.26578736]
[1763024199970,0.324,103630.0,103620.0,0.24578736]
[1763024200187,0.324,103630.0,103620.0,0.26578736]
[1763024200766,0.001,103630.0,103620.0,0.51735891]
[1763024202961,0.001,103630.0,103620.0,0.49735891]
[1763024203161,0.001,103630.0,103620.0,0.24578736]
[1763024203516,0.51597665,103640.0,103620.0,0.51735891]
[1763024203725,0.51597568,103640.0,103630.0,0.2652843]
[1763024204513,0.323,103640.0,103630.0,0.2452843]
[1763024204762,0.323,103640.0,103630.0,0.2652843]
[1763024205116,0.0723831,103650.0,103640.0,0.21297568]
[1763024205486,0.83991171,103650.0,103640.0,0.05229]
[1763024205684,0.89252722,103650.0,103640.0,0.05229]
[1763024205885,0.89252722,103650.0,103640.0,0.24526568]
[1763024205886,0.64095567,103650.0,103640.0,0.24526568]
[1763024206091,0.44799861,103650.0,103640.0,0.26526568]
[1763024206270,0.4480884,103650.0,103640.0,0.26526568]
[1763024206485,0.43002709,103650.0,103640.0,0.26526568]
[1763024206897,0.43202709,103650.0,103640.0,0.26526568]
[1763024207108,0.36850853,103650.0,103640.0,0.26526568]
[1763024207869,0.38656799,103650.0,103640.0,0.26526568]
[1763024211286,0.36850853,103650.0,103640.0,0.26526568]
[1763024211737,0.32508979,103650.0,103640.0,0.26526568]
[1763024211950,0.00208979,103650.0,103640.0,0.51683723]
[1763024212163,0.00208979,103650.0,103640.0,0.49683723]
[1763024212383,0.00208979,103650.0,103640.0,0.51683723]
[1763024212814,0.00108979,103650.0,103640.0,0.51683723]
[1763024213020,0.00108979,103650.0,103640.0,0.7077601]
[1763024213236,8.979e-05,103650.0,103640.0,0.48651289]
[1763024213663,8.979e-05,103650.0,103640.0,0.7077601]
[1763024215969,8.979e-05,103650.0,103640.0,0.90900731]
[1763024216175,8.979e-05,103650.0,103640.0,0.7077601]
[1763024216386,8.979e-05,103650.0,103640.0,0.6877601]
[1763024216596,8.979e-05,103650.0,103640.0,0.7077601]
[1763024217318,8.979e-05,103650.0,103640.0,0.7097601]
[1763024218436,8.979e-05,103650.0,103640.0,0.6897601]
[1763024218647,8.979e-05,103650.0,103640.0,0.7097601]
[1763024219092,8.979e-05,103650.0,103640.0,0.51867407]
[1763024220044,8.979e-05,103650.0,103640.0,0.77008246]
[1763024222319,8.979e-05,103650.0,103640.0,0.26726568]
[1763024222532,8.979e-05,103650.0,103640.0,0.51867407]
[1763024223396,8.979e-05,103650.0,103640.0,0.77008246]
[1763024223857,0.43699973,103690.0,103670.0,0.19291984]
[1763024224082,0.02011053,103690.0,103680.0,0.22126123]
[1763024224308,0.04906438,103690.0,103680.0,0.26449123]
[1763024224528,0.38652927,103690.0,103680.0,0.24449123]
[1763024224785,0.06352927,103690.0,103680.0,0.26449123]
[1763024224997,0.38652927,103690.0,103680.0,0.51589962]
[1763024225410,0.38652927,103690.0,103680.0,0.26449123]
[1763024225841,0.38752927,103690.0,103680.0,0.26449123]
[1763024226437,0.38852927,103690.0,103680.0,0.26449123]
[1763024226861,0.34511053,103690.0,103680.0,0.51589962]
[1763024227060,0.02211053,103690.0,103680.0,0.56589962]
[1763024227344,0.02209548,103690.0,103680.0,0.56589962]
[1763024227784,0.02109548,103690.0,103680.0,0.56589962]
[1763024228030,0.02109548,103690.0,103680.0,0.81730801]
[1763024228298,0.00308158,103690.0,103680.0,0.56589962]
[1763024228530,0.00208158,103690.0,103680.0,0.56589962]
[1763024228745,0.00208158,103690.0,103680.0,0.81730801]
[1763024232967,0.00208158,103690.0,103680.0,0.73549695]
[1763024236260,0.00208158,103690.0,103680.0,0.31449123]
[1763024236485,0.00208158,103690.0,103680.0,0.73549695]
[1763024238967,0.00208158,103690.0,103680.0,0.90394935]
[1763024243123,0.00208158,103690.0,103680.0,0.35633123]
[1763024243309,0.00208158,103690.0,103680.0,0.94578935]
[1763024243867,0.00208158,103690.0,103680.0,0.10074]
[1763024243868,0.19496421,103690.0,103680.0,0.10074]
[1763024244063,0.00208158,103690.0,103680.0,0.33548123]
[1763024244396,0.00208158,103690.0,103680.0,0.35548123]
[1763024244600,0.19496421,103690.0,103680.0,0.14258]
[1763024244814,0.51796421,103690.0,103680.0,0.10074]
[1763024245012,0.85611201,103690.0,103680.0,0.14258]
[1763024245682,0.85611201,103690.0,103680.0,0.16258]
[1763024245982,0.56138295,103690.0,103680.0,0.16258]
[1763024246185,0.85611201,103690.0,103680.0,0.14258]
[1763024246389,0.53311201,103690.0,103680.0,0.14258]
[1763024246801,1.24240888,103690.0,103680.0,0.05]
[1763024247008,0.94767982,103690.0,103680.0,0.09184]
[1763024247374,0.94362982,103690.0,103680.0,0.09184]
[1763024247963,0.58442214,103690.0,103680.0,0.09184]
[1763024248171,0.8791512,103690.0,103680.0,0.11184]
[1763024248647,0.8791512,103690.0,103680.0,0.11935]
[1763024248848,0.8751012,103690.0,103680.0,0.14258]
[1763024249068,0.8761012,103690.0,103680.0,0.14258]
[1763024249470,0.8761012,103690.0,103680.0,0.33548123]
[1763024249659,0.25837214,103690.0,103680.0,0.33548123]
[1763024250302,0.25837214,103690.0,103680.0,0.35548123]
[1763024250512,0.06548951,103690.0,103680.0,0.35548123]
[1763024250800,0.04750032,103690.0,103680.0,0.35548123]
[1763024251020,0.00408158,103690.0,103680.0,0.35548123]
[1763024251268,0.02109082,103690.0,103680.0,0.35548123]
[1763024251451,0.00308158,103690.0,103680.0,0.35548123]